[Event "Turkish Women-ch Arzum 2022"]
[Site "Ayvalik"]
[Date "2022.03.06"]
[Round "3.7"]
[White "Tanir, Simay"]
[Black "Kalayci, Nino"]
[Result "0-1"]
[ECO "D36"]
[WhiteElo "1510"]
[BlackElo "1775"]
[Annotator "NA"]
[PlyCount "94"]
[EventDate "2022.03.04"]
[EventType "swiss"]
[EventCountry "TUR"]
[SourceTitle "playchess.com"]
[Source "ChessBase"]
[SourceQuality "1"]
[TimeControl "5400+30"]

1. d4 {[%emt 0:01:00]} d5 {[%emt 0:01:00]} 2. c4 {[%emt 0:00:30]} e6 {[%emt 0:00:30]} 3. Nc3 {[%emt 0:00:30]} Nf6 {[%emt 0:00:30]} 4. cxd5 {[%emt 0:00:30]} exd5 {[%emt 0:00:30]} 5. Bg5 {[%emt 0:00:30]} Be7 {[%emt 0:00:30]} 6. e3 {[%emt 0:00:30]} O-O {[%emt 0:00:30]} 7. Bd3 {[%emt 0:00:30]} c6 {[%emt 0:00:00]} 8. Qc2 {[%emt 0:00:00]} Nbd7 {[%emt 0:00:00]} 9. Nf3 {[%emt 0:00:00]} Re8 {[%emt 0:00:30]} 10. O-O {[%emt 0:00:30]} Nf8 {[%emt 0:00:30]} 11. h3 {[%emt 0:04:30]} h6 {[%emt 0:43:30]} 12. Bxf6 {[%emt 0:08:30]} Bxf6 {[%emt 0:00:00]} 13. b4 {[%emt 0:01:30]} b6 {[%emt 0:05:00]} 14. Rac1 {[%emt 0:07:30]} Bb7 {[%emt 0:02:30]} 15. Nb1 {[%emt 0:13:30]} Rc8 {[%emt 0:10:30]} 16. Nbd2 {[%emt 0:03:30]} Ne6 {[%emt 0:02:30]} 17. Nb3 {[%emt 0:05:30]} Qe7 {[%emt 0:12:20]} 18. Qd2 {[%emt 0:05:30]} a5 {[%emt 0:07:05]} 19. bxa5 {[%emt 0:04:30]} c5 {[%emt 0:01:09]} 20. Bb5 {[%emt 0:14:30]} c4 {[%emt 0:05:33]} 21. Bxe8 {[%emt 0:02:30]} Rxe8 {[%emt 0:00:01]} 22. axb6 {[%emt 0:01:30]} cxb3 {[%emt 0:00:26]} 23. axb3 {[%emt 0:00:00]} Qd6 {[%emt 0:01:00]} 24. Rc2 {[%emt 0:10:28]} Qxb6 {[%emt 0:00:13]} 25. Rfc1 {[%emt 0:01:10]} Nd8 {[%emt 0:01:56]} 26. b4 {[%emt 0:02:50]} Nc6 {[%emt 0:01:46]} 27. Rb2 {[%emt 0:04:06]} Be7 {[%emt 0:00:21]} 28. b5 {[%emt 0:02:33]} Na5 {[%emt 0:00:22]} 29. Ne5 {[%emt 0:01:31]} Bd6 {[%emt 0:02:43]} 30. Ra1 {[%emt 0:02:08]} Nc4 {[%emt 0:01:45]} 31. Nxc4 {[%emt 0:00:30]} dxc4 {[%emt 0:00:30]} 32. Qc3 {[%emt 0:00:00]} Rc8 {[%emt 0:00:06]} 33. Ra4 {[%emt 0:00:00]} Bb8 {[%emt 0:00:36]} 34. Rxc4 {[%emt 0:00:12]} Rxc4 {[%emt 0:00:30]} 35. Qxc4 {[%emt 0:00:07]} Qd6 {[%emt 0:00:00]} 36. g3 {[%emt 0:00:32]} Qg6 {[%emt 0:00:39]} 37. d5 {[%emt 0:01:35]} Qf5 {[%emt 0:00:51]} 38. e4 {[%emt 0:01:23]} Qe5 {[%emt 0:00:07]} 39. Rd2 {[%emt 0:01:13]} Ba7 {[%emt 0:00:28]} 40. Kf1 {[%emt 0:00:32]} Qa1+ {[%emt 0:00:39]} 41. Kg2 {[%emt 0:00:07]} Qe5 {[%emt 0:00:45]} 42. f4 {[%emt 0:00:43]} Qa1 {[%emt 0:00:19]} 43. d6 {[%emt 0:01:27]} Qg1+ {[%emt 0:00:30]} 44. Kf3 {[%emt 0:00:30]} Qe3+ {[%emt 0:00:08]} 45. Kg4 {[%emt 0:00:00]} Qxd2 {[%emt 0:00:28]} 46. Qc7 {[%emt 0:00:00]} Qe2+ {[%emt 0:00:46]} 47. Kh4 {[%emt 0:00:00]} g6 {[%emt 0:00:49]} 0-1

[Event "Turkish Women-ch Arzum 2022"]
[Site "Ayvalik"]
[Date "2022.03.06"]
[Round "3.8"]
[White "Aydin, Gulenay"]
[Black "Can, Isil"]
[Result "0-1"]
[ECO "D46"]
[WhiteElo "2069"]
[BlackElo "1875"]
[Annotator "NA"]
[PlyCount "94"]
[EventDate "2022.03.04"]
[EventType "swiss"]
[EventCountry "TUR"]
[SourceTitle "playchess.com"]
[Source "ChessBase"]
[SourceQuality "1"]
[TimeControl "5400+30"]

1. d4 {[%emt 0:01:00]} d5 {[%emt 0:01:00]} 2. c4 {[%emt 0:00:30]} e6 {[%emt 0:00:30]} 3. Nc3 {[%emt 0:00:30]} Nf6 {[%emt 0:00:30]} 4. e3 {[%emt 0:07:30]} c6 {[%emt 0:00:30]} 5. Nf3 {[%emt 0:00:30]} Nbd7 {[%emt 0:00:30]} 6. Bd3 {[%emt 0:00:30]} Bd6 {[%emt 0:00:00]} 7. O-O {[%emt 0:00:30]} O-O {[%emt 0:00:00]} 8. e4 {[%emt 0:01:30]} dxc4 {[%emt 0:01:30]} 9. Bxc4 {[%emt 0:00:00]} e5 {[%emt 0:00:00]} 10. Re1 {[%emt 0:24:00]} h6 {[%emt 0:03:00]} 11. h3 {[%emt 0:04:30]} Qc7 {[%emt 0:07:30]} 12. Bb3 {[%emt 0:11:30]} a6 {[%emt 0:07:30]} 13. Be3 {[%emt 0:10:30]} exd4 {[%emt 0:07:30]} 14. Nxd4 {[%emt 0:02:30]} Nc5 {[%emt 0:05:30]} 15. Bc2 {[%emt 0:01:30]} Re8 {[%emt 0:04:30]} 16. Qf3 {[%emt 0:03:30]} b5 {[%emt 0:07:30]} 17. a3 {[%emt 0:05:30]} Ncd7 {[%emt 0:03:30]} 18. Rad1 {[%emt 0:04:41]} Ne5 {[%emt 0:02:30]} 19. Qe2 {[%emt 0:00:01]} Nc4 {[%emt 0:01:30]} 20. Bc1 {[%emt 0:00:26]} Be5 {[%emt 0:05:30]} 21. Bb3 {[%emt 0:10:53]} Nb6 {[%emt 0:16:30]} 22. Bc2 {[%emt 0:03:17]} c5 {[%emt 0:08:53]} 23. Nf3 {[%emt 0:00:38]} Bxc3 {[%emt 0:01:48]} 24. bxc3 {[%emt 0:00:30]} Bb7 {[%emt 0:00:00]} 25. e5 {[%emt 0:01:41]} Nc4 {[%emt 0:06:43]} 26. Qd3 {[%emt 0:04:10]} Nxe5 {[%emt 0:01:37]} 27. Nxe5 {[%emt 0:01:03]} Rxe5 {[%emt 0:00:06]} 28. Rxe5 {[%emt 0:00:23]} Qxe5 {[%emt 0:00:02]} 29. Be3 {[%emt 0:00:32]} Be4 {[%emt 0:03:44]} 30. Qd2 {[%emt 0:00:02]} Re8 {[%emt 0:00:45]} 31. a4 {[%emt 0:01:01]} Re7 {[%emt 0:03:36]} 32. axb5 {[%emt 0:00:48]} axb5 {[%emt 0:00:02]} 33. Bb3 {[%emt 0:00:11]} c4 {[%emt 0:00:42]} 34. Bc2 {[%emt 0:00:23]} Rd7 {[%emt 0:01:34]} (34... Bxc2 $19 35. Qxc2 Nd5) 35. Bd4 {[%emt 0:00:01]} Qf5 {[%emt 0:00:22]} 36. Bxe4 {[%emt 0:01:13]} Nxe4 {[%emt 0:00:30]} 37. Qc2 {[%emt 0:00:30]} Qg6 {[%emt 0:00:30]} 38. Re1 {[%emt 0:00:30]} Re7 {[%emt 0:00:30]} 39. Rb1 {[%emt 0:00:30]} Nxc3 {[%emt 0:00:30]} 40. Qxg6 {[%emt 0:00:30]} Ne2+ {[%emt 0:00:30]} 41. Kf1 {[%emt 0:00:30]} fxg6 {[%emt 0:00:30]} 42. Re1 {[%emt 0:00:30] [#]} Nxd4 $1 {[%emt 0:01:24]} 43. Rxe7 $19 {[%emt 0:00:06]} c3 {[%emt 0:00:00]} 44. Ke1 {[%emt 0:00:29]} b4 {[%emt 0:00:03]} 45. Kd1 {[%emt 0:00:58]} b3 {[%emt 0:00:14]} 46. Rb7 {[%emt 0:00:32]} b2 {[%emt 0:00:58]} 47. Rb8+ {[%emt 0:00:19]} Kh7 {[%emt 0:00:00]} 0-1

[Event "Turkish Women-ch Arzum 2022"]
[Site "Ayvalik"]
[Date "2022.03.06"]
[Round "3.9"]
[White "Caglar, Sila"]
[Black "Incecik, Seyma Zeynep"]
[Result "0-1"]
[ECO "B12"]
[WhiteElo "2200"]
[BlackElo "1777"]
[Annotator "ChessBase"]
[PlyCount "112"]
[EventDate "2022.03.04"]
[EventType "swiss"]
[EventCountry "TUR"]
[SourceTitle "playchess.com"]
[Source "ChessBase"]
[SourceQuality "1"]
[TimeControl "5400+30"]

1. e4 {[%emt 0:01:00]} c6 {[%emt 0:01:00]} 2. d4 {[%emt 0:03:30]} d5 {[%emt 0:00:30]} 3. e5 {[%emt 0:00:30]} Bf5 {[%emt 0:00:30]} 4. Ne2 {[%emt 0:02:30]} e6 {[%emt 0:01:30]} 5. Ng3 {[%emt 0:00:30]} Bg6 {[%emt 0:00:30]} 6. Be2 {[%emt 0:01:30]} c5 {[%emt 0:00:30]} 7. h4 {[%emt 0:07:30]} h6 {[%emt 0:02:30]} 8. h5 {[%emt 0:08:30]} Bh7 {[%emt 0:00:30]} 9. dxc5 {[%emt 0:00:30]} Bxc5 {[%emt 0:01:30]} 10. Nd2 {[%emt 0:00:30]} Nc6 {[%emt 0:01:30]} 11. Nf3 {[%emt 0:00:30]} Qb6 {[%emt 0:10:30]} 12. O-O {[%emt 0:00:30]} O-O-O {[%emt 0:06:30]} 13. c3 {[%emt 0:05:30]} d4 {[%emt 0:03:30]} 14. b4 {[%emt 0:00:30]} d3 {[%emt 0:10:30]} 15. bxc5 {[%emt 0:01:30]} Qxc5 {[%emt 0:02:30]} 16. Be3 {[%emt 0:01:30]} Qa5 {[%emt 0:12:30]} 17. Bd4 {[%emt 0:07:30]} dxe2 {[%emt 0:04:30]} 18. Qxe2 {[%emt 0:00:30]} Nge7 {[%emt 0:00:30]} 19. Ne4 {[%emt 0:01:30]} Bxe4 {[%emt 0:05:30]} 20. Qxe4 {[%emt 0:00:30]} Qd5 {[%emt 0:00:30]} 21. Qe2 {[%emt 0:01:30]} Nf5 {[%emt 0:02:30]} 22. Rfd1 {[%emt 0:00:30]} Qa5 {[%emt 0:00:30]} 23. Rab1 {[%emt 0:01:30]} Rd5 {[%emt 0:00:30]} 24. Qc4 {[%emt 0:03:30]} Qc7 {[%emt 0:03:30]} 25. g4 {[%emt 0:06:30]} Nfe7 {[%emt 0:01:30]} 26. Rb2 {[%emt 0:01:30]} Na5 {[%emt 0:03:30]} 27. Qxc7+ {[%emt 0:06:30]} Kxc7 {[%emt 0:00:30]} 28. Rdb1 {[%emt 0:00:30]} b6 {[%emt 0:00:00]} 29. c4 {[%emt 0:03:30]} Nxc4 {[%emt 0:01:00]} 30. Rc2 {[%emt 0:00:30]} b5 {[%emt 0:00:30]} 31. Bxa7 {[%emt 0:00:00]} Nc6 {[%emt 0:00:30]} 32. Be3 {[%emt 0:00:00]} Na3 {[%emt 0:00:30]} 33. Rxc6+ {[%emt 0:02:30]} Kxc6 {[%emt 0:00:30]} 34. Rc1+ {[%emt 0:00:00]} Kd7 {[%emt 0:00:30]} 35. Kg2 {[%emt 0:03:00]} Rc8 {[%emt 0:01:30]} 36. Rh1 {[%emt 0:01:30]} Rc2 {[%emt 0:01:30]} 37. g5 {[%emt 0:00:30]} Nc4 {[%emt 0:00:30]} 38. Bf4 {[%emt 0:05:30]} hxg5 {[%emt 0:00:30]} 39. Bg3 {[%emt 0:00:30]} g4 {[%emt 0:01:30]} 40. Ng5 {[%emt 0:01:30]} Nxe5 {[%emt 0:01:30]} 41. h6 {[%emt 0:00:30]} gxh6 {[%emt 0:00:30]} 42. Rxh6 {[%emt 0:00:00]} Nf3 {[%emt 0:00:54]} 43. Ne4 {[%emt 0:03:00]} Rd4 {[%emt 0:01:42]} 44. Nf6+ {[%emt 0:00:30]} Kc6 {[%emt 0:03:12]} 45. Rh8 {[%emt 0:00:30]} Rxa2 {[%emt 0:01:35]} 46. Rc8+ {[%emt 0:02:47]} Kb6 {[%emt 0:00:40]} 47. Rg8 {[%emt 0:00:05]} Raa4 {[%emt 0:00:56]} 48. Rg7 {[%emt 0:00:41]} b4 {[%emt 0:03:33]} 49. Rxf7 {[%emt 0:02:24]} b3 {[%emt 0:00:25]} 50. Rf8 {[%emt 0:07:51]} Ra7 {[%emt 0:00:24]} 51. Re8 {[%emt 0:06:21]} b2 {[%emt 0:00:13]} 52. Rxe6+ {[%emt 0:00:08]} Kb5 {[%emt 0:00:54]} 53. Ne4 {[%emt 0:02:41]} Rxe4 {[%emt 0:00:36]} 54. Rxe4 {[%emt 0:00:30]} b1=Q {[%emt 0:00:30]} 55. Rxg4 {[%emt 0:00:00]} Qg1+ {[%emt 0:00:00]} 56. Kxf3 {[%emt 0:00:09]} Qd1+ {[%emt 0:00:15]} 0-1

[Event "Turkish Women-ch Arzum 2022"]
[Site "Ayvalik"]
[Date "2022.03.06"]
[Round "3.10"]
[White "Engel, Ecrin Tuana"]
[Black "Kocyigit, Buse Naz"]
[Result "0-1"]
[ECO "A48"]
[WhiteElo "1250"]
[BlackElo "2023"]
[Annotator "NA"]
[PlyCount "116"]
[EventDate "2022.03.04"]
[EventType "swiss"]
[EventCountry "TUR"]
[SourceTitle "playchess.com"]
[Source "ChessBase"]
[SourceQuality "1"]
[TimeControl "5400+30"]

1. d4 {[%emt 0:01:00]} Nf6 {[%emt 0:05:00]} 2. Bf4 {[%emt 0:00:30]} g6 {[%emt 0:00:30]} 3. Nf3 {[%emt 0:00:30]} Bg7 {[%emt 0:00:00]} 4. e3 {[%emt 0:00:00]} O-O {[%emt 0:00:00]} 5. Be2 {[%emt 0:00:00]} c5 {[%emt 0:00:30]} 6. c4 {[%emt 0:02:30]} cxd4 {[%emt 0:00:30]} 7. exd4 {[%emt 0:00:00]} d5 {[%emt 0:00:00]} 8. Nbd2 {[%emt 0:05:00]} Nc6 {[%emt 0:01:00]} 9. O-O {[%emt 0:03:30]} Ne4 {[%emt 0:16:30]} 10. Be5 {[%emt 0:19:30]} Nxe5 {[%emt 0:08:30]} 11. dxe5 {[%emt 0:00:00]} Nxd2 {[%emt 0:01:30]} 12. Qxd2 {[%emt 0:00:00]} dxc4 {[%emt 0:00:30]} 13. Qxd8 {[%emt 0:00:30]} Rxd8 {[%emt 0:00:00]} 14. Bxc4 {[%emt 0:00:30]} Bg4 {[%emt 0:28:00]} 15. Ng5 {[%emt 0:06:30]} e6 {[%emt 0:00:30]} 16. h3 {[%emt 0:01:30]} Bf5 {[%emt 0:00:00]} 17. f4 {[%emt 0:15:30]} Rd4 {[%emt 0:08:00]} 18. Bb3 {[%emt 0:08:30]} h6 {[%emt 0:03:30]} 19. Nf3 {[%emt 0:00:30]} Rxf4 {[%emt 0:00:30]} 20. Rad1 {[%emt 0:02:30]} Be4 {[%emt 0:03:30]} 21. Nh2 $2 {[%emt 0:05:30]} (21. Rd4 $17 {might work better.}) 21... Rxf1+ {[%emt 0:01:30]} 22. Rxf1 {[%emt 0:00:30]} Bxe5 {[%emt 0:00:00]} 23. Ng4 {[%emt 0:00:30]} Bg7 {[%emt 0:03:47]} 24. Rf4 {[%emt 0:01:30]} Bc6 {[%emt 0:01:02]} 25. Kf1 {[%emt 0:01:30]} Rd8 {[%emt 0:00:12]} 26. Rf2 {[%emt 0:01:30]} h5 {[%emt 0:01:01]} 27. Ne3 {[%emt 0:01:30]} Rd3 {[%emt 0:00:52]} 28. Nc4 {[%emt 0:01:30]} b5 {[%emt 0:01:37]} 29. Na5 {[%emt 0:00:30]} Be4 {[%emt 0:01:10]} 30. Bc2 {[%emt 0:00:30]} Re3 {[%emt 0:00:39]} 31. Bxe4 {[%emt 0:00:30]} Rxe4 {[%emt 0:00:00]} 32. Nc6 {[%emt 0:00:00]} a6 {[%emt 0:00:38]} 33. Ne7+ {[%emt 0:00:00]} Kf8 {[%emt 0:00:51]} 34. Nxg6+ {[%emt 0:01:30]} Ke8 {[%emt 0:00:08]} 35. Nf4 {[%emt 0:00:00]} Bd4 {[%emt 0:01:02]} 36. Nxh5 {[%emt 0:00:00]} Rh4 {[%emt 0:01:24]} 37. Rf4 {[%emt 0:03:30]} Rxf4+ {[%emt 0:01:00]} ({Worse is} 37... Rxh5 38. Rxd4 Ke7 39. Kf2 $11) 38. Nxf4 {[%emt 0:00:30]} Bxb2 {[%emt 0:00:00]} 39. g4 {[%emt 0:00:52]} Ke7 {[%emt 0:00:13]} 40. Nd3 {[%emt 0:00:28]} Bc3 {[%emt 0:00:34]} 41. Nc5 {[%emt 0:00:29]} a5 {[%emt 0:00:56]} 42. Ne4 {[%emt 0:00:12]} Bd4 {[%emt 0:00:43]} 43. Ke2 {[%emt 0:00:29]} f5 {[%emt 0:03:35]} 44. gxf5 {[%emt 0:03:03]} exf5 {[%emt 0:01:17]} 45. Kd3 {[%emt 0:01:09]} (45. Ng3 $142 Kf6 46. Kd3) 45... Be5 {[%emt 0:01:43]} 46. Nc5 {[%emt 0:00:58]} Kf6 {[%emt 0:00:47]} 47. Nd7+ $19 {[%emt 0:01:48]} Ke6 {[%emt 0:00:30]} 48. Nc5+ {[%emt 0:00:00]} Kd5 {[%emt 0:00:00]} 49. Nd7 {[%emt 0:02:50]} Bg3 {[%emt 0:01:55]} 50. Nf6+ {[%emt 0:02:14]} Kc5 {[%emt 0:01:13]} 51. Nh5 {[%emt 0:00:38]} Be5 {[%emt 0:00:41]} 52. Kc2 {[%emt 0:00:16]} Kb4 {[%emt 0:00:01]} 53. h4 {[%emt 0:01:08]} Ka3 {[%emt 0:00:30]} 54. Kb1 {[%emt 0:00:00]} b4 {[%emt 0:00:10]} 55. Ng3 {[%emt 0:00:19]} Bxg3 {[%emt 0:00:00]} 56. h5 {[%emt 0:00:22]} a4 {[%emt 0:00:07]} 57. h6 {[%emt 0:00:00]} b3 {[%emt 0:00:20]} 58. axb3 {[%emt 0:00:00]} Kxb3 {[%emt 0:00:00]} 0-1

[Event "Turkish Women-ch Arzum 2022"]
[Site "Ayvalik"]
[Date "2022.03.06"]
[Round "3.11"]
[White "Acarbay, Algi"]
[Black "Karatiken, Seray"]
[Result "0-1"]
[ECO "B51"]
[WhiteElo "1992"]
[BlackElo "1717"]
[Annotator "ChessBase"]
[PlyCount "62"]
[EventDate "2022.03.04"]
[EventType "swiss"]
[EventCountry "TUR"]
[SourceTitle "playchess.com"]
[Source "ChessBase"]
[SourceQuality "1"]
[TimeControl "5400+30"]

1. e4 {[%emt 0:01:00]} c5 {[%emt 0:01:00]} 2. Nf3 {[%emt 0:01:30]} d6 {[%emt 0:04:30]} 3. Bb5+ {[%emt 0:00:30]} Nd7 {[%emt 0:00:00]} 4. d4 {[%emt 0:00:30]} cxd4 {[%emt 0:00:00]} 5. Qxd4 {[%emt 0:00:30]} a6 {[%emt 0:01:30]} 6. Bxd7+ {[%emt 0:00:30]} Bxd7 {[%emt 0:00:30]} 7. c4 {[%emt 0:00:30]} Nf6 {[%emt 0:00:00]} 8. Bg5 {[%emt 0:00:00]} e6 {[%emt 0:01:00]} 9. Nc3 {[%emt 0:07:00]} Bc6 {[%emt 0:02:30]} 10. O-O {[%emt 0:01:30]} Be7 {[%emt 0:00:30]} 11. Rfd1 {[%emt 0:04:30]} O-O {[%emt 0:02:30]} 12. a4 {[%emt 0:11:30]} Qa5 {[%emt 0:09:30]} 13. b3 {[%emt 0:04:30]} Rfe8 {[%emt 0:10:30]} 14. Bh4 {[%emt 0:14:30]} Rad8 {[%emt 0:16:30]} 15. Rab1 {[%emt 0:13:30]} Qc5 {[%emt 0:25:30]} 16. Qd3 {[%emt 0:09:30]} d5 {[%emt 0:02:42]} 17. cxd5 {[%emt 0:10:41]} exd5 {[%emt 0:00:25]} 18. exd5 {[%emt 0:06:26]} Nxd5 {[%emt 0:02:54]} 19. Ne4 {[%emt 0:02:48]} Qb4 {[%emt 0:02:29]} 20. Bxe7 {[%emt 0:03:20]} Qxe7 {[%emt 0:00:32]} 21. Neg5 {[%emt 0:01:25]} Nf6 {[%emt 0:01:31]} 22. Qc3 {[%emt 0:01:30]} h6 {[%emt 0:01:09]} 23. Re1 {[%emt 0:00:44]} Qd6 {[%emt 0:01:22]} 24. Nh3 {[%emt 0:00:36]} Ng4 {[%emt 0:00:53]} 25. Rbd1 {[%emt 0:03:11]} Rxe1+ {[%emt 0:00:18]} 26. Rxe1 {[%emt 0:00:23]} Bxf3 {[%emt 0:00:19]} 27. Qxf3 {[%emt 0:00:56]} Qxh2+ {[%emt 0:00:21]} 28. Kf1 {[%emt 0:00:08]} Qh1+ {[%emt 0:00:15]} 29. Ke2 {[%emt 0:00:40]} Re8+ {[%emt 0:00:30]} 30. Kd3 {[%emt 0:00:15]} Qxe1 {[%emt 0:02:37]} 31. Qxg4 {[%emt 0:00:30]} Rd8+ {[%emt 0:00:00]} 0-1

[Event "Turkish Women-ch Arzum 2022"]
[Site "Ayvalik"]
[Date "2022.03.06"]
[Round "3.12"]
[White "Ince, Safiye Oyku"]
[Black "Kucuk, Aybike"]
[Result "1-0"]
[ECO "B43"]
[WhiteElo "1893"]
[BlackElo "1439"]
[Annotator "NA"]
[PlyCount "51"]
[EventDate "2022.03.04"]
[EventType "swiss"]
[EventCountry "TUR"]
[SourceTitle "playchess.com"]
[Source "ChessBase"]
[SourceQuality "1"]
[TimeControl "5400+30"]

1. e4 {[%emt 0:01:00]} c5 {[%emt 0:01:00]} 2. Nf3 {[%emt 0:00:30]} e6 {[%emt 0:00:30]} 3. d4 {[%emt 0:00:30]} cxd4 {[%emt 0:00:30]} 4. Nxd4 {[%emt 0:00:30]} a6 {[%emt 0:00:30]} 5. Nc3 {[%emt 0:00:30]} b5 {[%emt 0:00:00]} 6. g3 {[%emt 0:01:30]} Bb7 {[%emt 0:00:00]} 7. Bg2 {[%emt 0:00:30]} Qc7 {[%emt 0:00:30]} 8. O-O {[%emt 0:00:30]} Nf6 {[%emt 0:01:30]} 9. Re1 {[%emt 0:01:30]} d6 {[%emt 0:01:30]} 10. a4 {[%emt 0:09:30]} b4 {[%emt 0:09:30]} 11. Nd5 {[%emt 0:00:30]} Qd8 {[%emt 0:09:30]} 12. Nxf6+ {[%emt 0:10:30]} gxf6 {[%emt 0:00:30]} 13. Qh5 {[%emt 0:00:00]} e5 {[%emt 0:09:30]} 14. Ne6 {[%emt 0:01:00]} Qe7 {[%emt 0:01:30]} 15. Nxf8 {[%emt 0:01:30]} Qxf8 {[%emt 0:02:30]} 16. Bh6 {[%emt 0:04:30]} Qg8 {[%emt 0:00:30]} 17. Rad1 {[%emt 0:01:30]} Ke7 {[%emt 0:03:30]} 18. f4 {[%emt 0:11:30]} Qg6 {[%emt 0:11:30]} 19. Qh4 {[%emt 0:00:30]} Nc6 {[%emt 0:03:30]} 20. Bh3 {[%emt 0:01:30]} Bc8 {[%emt 0:10:30]} 21. Bf5 {[%emt 0:02:30]} Qg8 {[%emt 0:06:30]} 22. fxe5 {[%emt 0:06:30]} Nxe5 {[%emt 0:04:30]} 23. Rf1 {[%emt 0:00:00]} Be6 {[%emt 0:00:30]} 24. Bxe6 {[%emt 0:00:00]} fxe6 {[%emt 0:01:30]} 25. Qxf6+ {[%emt 0:00:30]} Kd7 {[%emt 0:00:30]} 26. Qxe5 {[%emt 0:00:30]} 1-0

[Event "Turkish Women-ch Arzum 2022"]
[Site "Ayvalik"]
[Date "2022.03.06"]
[Round "3.13"]
[White "Alev, Gonulden Seda"]
[Black "Hereklioglu, Sude"]
[Result "0-1"]
[ECO "B28"]
[WhiteElo "1561"]
[BlackElo "1924"]
[Annotator "ChessBase"]
[PlyCount "56"]
[EventDate "2022.03.04"]
[EventType "swiss"]
[EventCountry "TUR"]
[SourceTitle "playchess.com"]
[Source "ChessBase"]
[SourceQuality "1"]
[TimeControl "5400+30"]

1. e4 {[%emt 0:01:00]} c5 {[%emt 0:01:00]} 2. Nf3 {[%emt 0:00:30]} a6 {[%emt 0:00:30]} 3. d4 {[%emt 0:00:30]} cxd4 {[%emt 0:00:30]} 4. Nxd4 {[%emt 0:00:30]} Nf6 {[%emt 0:00:30]} 5. Nc3 {[%emt 0:02:30]} e5 {[%emt 0:00:30]} 6. Nb3 {[%emt 0:01:30]} Bb4 {[%emt 0:02:30]} 7. Bd3 {[%emt 0:03:30]} d5 {[%emt 0:01:30]} 8. exd5 {[%emt 0:00:30]} Nxd5 {[%emt 0:00:30]} 9. Bd2 {[%emt 0:00:30]} Nxc3 {[%emt 0:01:30]} 10. bxc3 {[%emt 0:00:30]} Bd6 {[%emt 0:00:30]} 11. O-O {[%emt 0:00:30]} O-O {[%emt 0:02:30]} 12. Be4 {[%emt 0:08:30]} f5 {[%emt 0:09:30]} 13. Bd5+ {[%emt 0:02:30]} Kh8 {[%emt 0:00:30]} 14. c4 {[%emt 0:00:30]} Nc6 {[%emt 0:09:30]} 15. Bc3 {[%emt 0:04:30]} Bd7 {[%emt 0:20:30]} 16. Qd2 {[%emt 0:03:30]} Qe7 {[%emt 0:04:30]} 17. Rad1 {[%emt 0:07:30]} Rad8 {[%emt 0:02:30]} 18. Na5 {[%emt 0:10:30]} Be8 {[%emt 0:08:30]} 19. Rb1 {[%emt 0:05:30]} Nxa5 {[%emt 0:03:30]} 20. Bxa5 {[%emt 0:00:00]} Rd7 {[%emt 0:03:30]} 21. Rxb7 {[%emt 0:03:00]} Rxb7 {[%emt 0:03:30]} 22. Bxb7 {[%emt 0:00:00]} e4 {[%emt 0:00:30]} 23. Bxa6 {[%emt 0:09:00]} f4 {[%emt 0:07:41]} 24. Bb6 {[%emt 0:05:30]} f3 {[%emt 0:02:47]} 25. Bc8 {[%emt 0:06:30]} fxg2 {[%emt 0:09:34]} 26. Rd1 {[%emt 0:12:00]} Bxh2+ {[%emt 0:00:36]} 27. Kxh2 {[%emt 0:00:53]} Qh4+ {[%emt 0:00:30]} 28. Kxg2 {[%emt 0:00:00]} Bh5 {[%emt 0:02:06]} 0-1

[Event "Turkish Women-ch Arzum 2022"]
[Site "Ayvalik"]
[Date "2022.03.06"]
[Round "3.14"]
[White "Senkal, Defne"]
[Black "Onur, Cigdem"]
[Result "0-1"]
[ECO "B33"]
[WhiteElo "1247"]
[BlackElo "2012"]
[Annotator "ChessBase"]
[PlyCount "60"]
[EventDate "2022.03.04"]
[EventType "swiss"]
[EventCountry "TUR"]
[SourceTitle "playchess.com"]
[Source "ChessBase"]
[SourceQuality "1"]
[TimeControl "5400+30"]

1. e4 {[%emt 0:01:00]} c5 {[%emt 0:01:00]} 2. Nf3 {[%emt 0:00:30]} Nc6 {[%emt 0:01:30]} 3. d4 {[%emt 0:01:30]} cxd4 {[%emt 0:00:30]} 4. Nxd4 {[%emt 0:00:30]} Nf6 {[%emt 0:00:00]} 5. Nc3 {[%emt 0:00:00]} e5 {[%emt 0:00:00]} 6. Nb3 {[%emt 0:01:00]} Bb4 {[%emt 0:00:30]} 7. Bd3 {[%emt 0:02:30]} d5 {[%emt 0:04:30]} 8. exd5 {[%emt 0:05:30]} Nxd5 {[%emt 0:03:30]} 9. Bd2 {[%emt 0:02:30]} Be6 {[%emt 0:12:30]} 10. O-O {[%emt 0:02:30]} O-O {[%emt 0:07:30]} 11. Ne2 {[%emt 0:17:30]} f5 {[%emt 0:15:30]} 12. Bxb4 {[%emt 0:05:30]} Ndxb4 {[%emt 0:03:30]} 13. Nc5 {[%emt 0:07:30]} Qe7 {[%emt 0:08:30]} 14. Nxe6 {[%emt 0:04:30]} Qxe6 {[%emt 0:00:30]} 15. Bb5 {[%emt 0:04:30]} Rad8 {[%emt 0:02:30]} 16. Qc1 {[%emt 0:05:30]} Nxa2 {[%emt 0:16:30]} 17. Qb1 {[%emt 0:02:30]} Nab4 {[%emt 0:00:30]} 18. c3 {[%emt 0:00:30]} a6 {[%emt 0:04:00]} 19. Ba4 {[%emt 0:00:30]} Nd3 {[%emt 0:00:45]} 20. b4 {[%emt 0:02:30]} Kh8 {[%emt 0:02:17]} 21. Rd1 {[%emt 0:09:30]} e4 {[%emt 0:02:03]} 22. Bc2 {[%emt 0:06:58]} Nce5 {[%emt 0:00:59]} 23. Qb3 {[%emt 0:05:06]} Qh6 {[%emt 0:02:59]} 24. h3 {[%emt 0:01:09]} f4 {[%emt 0:00:56]} 25. Nd4 {[%emt 0:03:19]} f3 {[%emt 0:01:19]} 26. Qe6 {[%emt 0:01:33]} Rf6 {[%emt 0:03:17]} 27. Qe7 {[%emt 0:01:22]} Rg8 {[%emt 0:01:54]} 28. Bxd3 {[%emt 0:01:16]} Rg6 {[%emt 0:04:24]} 29. Bf1 {[%emt 0:05:15]} fxg2 {[%emt 0:00:05]} 30. Qxe5 {[%emt 0:00:39]} Qxh3 {[%emt 0:00:16]} 0-1